fUSD/lending_fUSD_20251217
["ID","MTS","AMOUNT","RATE_DAILY","PERIOD"]
[398877950,1765953040722,-649.91974958,0.00016438,2]
[398877951,1765953040731,-649.91974958,0.00016438,2]
[398877952,1765953040740,-649.91974958,0.00016438,2]
[398877953,1765953040749,-649.91974958,0.00016438,2]
[398877954,1765953040757,-649.91974958,0.00016438,2]
[398877955,1765953040766,-649.91974958,0.00016438,2]
[398877956,1765953040775,-649.91974958,0.00016438,2]
[398877957,1765953040784,-649.91974958,0.00016438,2]
[398877958,1765953040793,-649.91974958,0.00016438,2]
[398877959,1765953040802,-649.91974958,0.00016438,2]
[398877960,1765953040811,-649.91974958,0.00016438,2]
[398877961,1765953040820,-649.91974958,0.00016438,2]
[398877962,1765953040828,-649.91974958,0.00016438,2]
[398877963,1765953040837,-649.91974958,0.00016438,2]
[398877964,1765953040846,-600.0,0.00016438,2]
[398877965,1765953040855,-721.0,0.00016438,2]
[398877966,1765953040864,-721.0,0.00016438,2]
[398877967,1765953040873,-721.0,0.00016438,2]
[398877968,1765953040882,-481.46730423,0.00016451,2]
[398877969,1765953040891,-4764.84667947,0.00016456,2]
[398877970,1765953040900,-4283.2005385,0.0001646,2]
[398877971,1765953040910,-166.66,0.00016509,2]
[398877972,1765953040919,-4764.84667947,0.00016567,2]
[398877973,1765953040928,-4283.2005385,0.0001657,2]
[398877974,1765953040938,-358.48883582,0.000166,2]
[398877975,1765953040948,-433.0,0.00016612,2]
[398877976,1765953040957,-4764.84667947,0.00016678,2]
[398877977,1765953040966,-4283.2005385,0.0001668,2]
[398877978,1765953040975,-1009.78415087,0.000167,2]
[398877979,1765953040985,-164.0,0.00016712,2]
[398877980,1765953040994,-4764.84667947,0.00016789,2]
[398877981,1765953041003,-4283.2005385,0.0001679,2]
[398877982,1765953041012,-264.96252396,0.00016864,2]
[398877983,1765953041020,-468.62812363,0.00016883,2]
[398877984,1765953041029,-2229.21471156,0.00016886,2]
[398877985,1765953041039,-2229.21471156,0.00016889,2]
[398877986,1765953041048,-2229.21471156,0.00016892,2]
[398877987,1765953041056,-2229.21471156,0.00016894,2]
[398877988,1765953041065,-2229.21471156,0.00016897,2]
[398877989,1765953041074,-2229.0258044,0.000169,2]
[398877990,1765953041084,-204.50437362,0.000169,2]
[398877991,1765953041093,-4764.84667947,0.000169,2]
[398877992,1765953041103,-2229.21471156,0.000169,2]
[398877993,1765953041112,-4283.2005385,0.000169,2]
[398877994,1765953041121,-789.83225995,0.0001694,2]
[398877995,1765953041131,-151.0,0.00016947,2]
[398877996,1765953041140,-151.0,0.00016947,2]
[398877997,1765953041149,-1405.65,0.00016949,2]
[398877998,1765953041158,-1405.65,0.00016949,2]
[398877999,1765953041167,-1405.65,0.00016949,2]
[398878000,1765953041177,-1405.65,0.00016949,2]
[398878001,1765953041186,-830523.51066523,0.0001695,2]
[398878002,1765953041199,-468.62812361,0.00016965,2]
[398878003,1765953041209,-500.0,0.00016986,2]
[398878004,1765953041218,-500.0,0.00016986,2]
[398878005,1765953041227,-608.45,0.00016986,2]
[398878006,1765953041237,-151.0,0.00016986,2]
[398878007,1765953041247,-274.50588983,0.00016986,2]
[398878008,1765953041256,-502.323179,0.00016986,2]
[398878009,1765953041266,-502.323179,0.00016986,2]
[398878010,1765953041275,-502.323179,0.00016986,2]
[398878011,1765953041284,-502.323179,0.00016986,2]
[398878012,1765953041293,-151.0,0.00016986,2]
[398878013,1765953041303,-151.0,0.00016986,2]
[398878014,1765953041312,-151.0,0.00016986,2]
[398878015,1765953041321,-151.0,0.00016986,2]
[398878016,1765953041330,-151.0,0.00016986,2]
[398878017,1765953041339,-151.0,0.00016986,2]
[398878018,1765953041348,-151.0,0.00016986,2]
[398878019,1765953041357,-151.0,0.00016986,2]
[398878020,1765953041366,-1405.65,0.00016986,2]
[398878021,1765953041375,-1405.65,0.00016986,2]
[398878022,1765953041384,-446.38616377,0.00016986,2]
[398878023,1765953041393,-151.0,0.00016986,2]
[398878024,1765953041402,-151.0,0.00016986,2]
[398878025,1765953041411,-251.199987,0.00016986,2]
[398878026,1765953041420,-151.0,0.00016986,2]
[398878027,1765953041428,-518.745565,0.00016986,2]
[398878028,1765953041437,-518.745565,0.00016986,2]
[398878029,1765953041446,-518.745565,0.00016986,2]
[398878030,1765953041455,-518.745565,0.00016986,2]
[398878031,1765953041464,-151.0,0.00016986,2]
[398878032,1765953041473,-151.0,0.00016986,2]
[398878033,1765953041482,-228.339954,0.00016986,2]
[398878034,1765953041491,-228.339954,0.00016986,2]
[398878035,1765953041500,-228.339954,0.00016986,2]
[398878036,1765953041509,-228.339954,0.00016986,2]
[398878037,1765953041518,-413632.18268886,0.00016986,2]
[398878038,1765953041533,-1563.61745328,0.00016986,2]
[398878039,1765953041543,-696.74,0.00016986,2]
[398878040,1765953041557,-118355.12985786,0.00016986,2]
[398878041,1765953041566,-600.0,0.00016986,2]
[398878042,1765953041575,-789.83225995,0.0001699,2]
[398878043,1765953041583,-789.83225995,0.0001699,2]
[398878044,1765953041592,-500.0,0.00016992,2]
[398878045,1765953041601,-200.0,0.00016992,2]
[398878046,1765953041610,-300.0,0.00016999,2]
[398878047,1765953041619,-2013.13365055,0.00016999,2]
[398878048,1765953041628,-1405.65,0.00016999,2]
[398878049,1765953041637,-1405.65,0.00016999,2]
[398878050,1765953041646,-1405.65,0.00016999,2]
[398878051,1765953041655,-1405.65,0.00016999,2]
[398878052,1765953041664,-1405.65,0.00016999,2]
[398878053,1765953041983,-1405.65,0.00016999,2]
[398878054,1765953041992,-1405.65,0.00016999,2]
[398878055,1765953042001,-1405.65,0.00016999,2]
[398878056,1765953042010,-1405.65,0.00016999,2]
[398878057,1765953042029,-1405.65,0.00016999,2]
[398878058,1765953042040,-1405.65,0.00016999,2]
[398878059,1765953042050,-1405.65,0.00016999,2]
[398878060,1765953042059,-1405.65,0.00016999,2]
[398878061,1765953042070,-1405.65,0.00016999,2]
[398878062,1765953042079,-1405.65,0.00016999,2]
[398878063,1765953042089,-1405.65,0.00016999,2]
[398878064,1765953042099,-1405.75,0.00016999,2]
[398878065,1765953042109,-282430.92197169,0.00017,2]
[398878066,1765953042132,-20960.59918484,0.00017,2]
[398878067,1765953042144,-4000.0,0.00017,2]
[398878068,1765953042211,-60701.80358013,0.00017,2]
[398878069,1765953042222,-429.59999994,0.00017,2]
[398878070,1765953042234,-3336.62340853,0.00017,2]
[398878071,1765953042245,-20477.76518346,0.00017,2]
[398878072,1765953042257,-405.28705655,0.00017,2]
[398878073,1765953042275,-1690.66002,0.00017,2]
[398878074,1765953042288,-918.085566,0.00017,2]
[398878075,1765953042299,-788.50317115,0.00017,2]
[398878076,1765953042310,-463.67418489,0.00017,2]
[398878077,1765953042321,-481.57727047,0.00017,2]
[398878078,1765953042895,-4481.67,0.0001599,2]
[398878079,1765953042953,-7906.99,0.0001599,2]
[398878080,1765953042963,-10660.31510276,0.0001599,2]
[398878082,1765953045631,-1000.0,0.00014933,2]
[398878083,1765953045640,-1728.34489724,0.0001599,2]
[398878084,1765953045650,-164.32,0.0001644,2]
[398878085,1765953045660,-164.32,0.0001644,2]
[398878086,1765953045670,-164.32,0.0001644,2]
[398878087,1765953045680,-164.32,0.0001694,2]
[398878088,1765953045689,-164.32,0.0001694,2]
[398878089,1765953045699,-164.32,0.0001694,2]
[398878090,1765953045709,-164.32,0.00016976,2]
[398878091,1765953045718,-3627.13856163,0.00017,2]
[398878092,1765953045746,-155632.34087775,0.00017,2]
[398878093,1765953045862,-2455.16596,0.00017,2]
[398878094,1765953045922,-2000.0,0.00017,2]
[398878095,1765953045934,-1226.82225196,0.00017,2]
[398878096,1765953140282,2000.0,0.00023,120]
[398878097,1765953159604,1708.0,0.00023,120]
[398878098,1765953406157,500.0,0.00022,30]
[398878145,1765954231790,-652.29,0.00013699,2]
[398878147,1765954231799,-152.39,0.00014273,2]
[398878153,1765954232155,-62.58202952,0.00014273,2]
[398878156,1765954232178,-89.32797048,0.00014273,2]
[398878158,1765954232187,-150.32,0.00014273,2]
[398878160,1765954232197,-500.0,0.00014273,2]
[398878162,1765954232207,-500.0,0.00014273,2]
[398878164,1765954232220,-266.8433042,0.00014273,2]
[398878167,1765954232231,-233.1566958,0.00014273,2]
[398878169,1765954232240,-150.24,0.00014417,2]
[398878170,1765954232249,-166.66,0.00014714,2]
[398878173,1765954232260,-1000.0,0.00014821,2]
[398878174,1765954232269,-500.0,0.00014821,2]
[398878176,1765954232279,-1000.0,0.00014821,2]
[398878178,1765954232289,-200.0,0.00014901,2]
[398878180,1765954232298,-1200.0,0.00014921,2]
[398878182,1765954232307,-4099.79,0.00014922,2]
[398878184,1765954232315,-166.66,0.00015024,2]
[398878186,1765954232325,-302.49900544,0.00015068,2]
[398878188,1765954232334,-250.0,0.00015068,2]
[398878190,1765954232342,-300.0,0.00015072,2]
[398878192,1765954232351,-604.57970051,0.00015073,2]
[398878194,1765954232360,-504.13352986,0.00015073,2]
[398878195,1765954232370,-500.0,0.00015073,2]
[398878196,1765954232379,-181.27512093,0.00015073,2]
[398878197,1765954232387,-333.24771962,0.00015073,2]
[398878198,1765954232398,-550.43330654,0.00015073,2]
[398878199,1765954232407,-587.63817828,0.00015073,2]
[398878200,1765954232416,-500.0,0.00015073,2]
[398878201,1765954232425,-500.0,0.00015073,2]
[398878202,1765954232435,-504.46580797,0.00015073,2]
[398878203,1765954232444,-504.77619297,0.00015073,2]
[398878204,1765954232453,-505.18773153,0.00015073,2]
[398878205,1765954232462,-500.0,0.00015073,2]
[398878206,1765954232471,-189.83021365,0.00015073,2]
[398878207,1765954232480,-275.9217969,0.00015073,2]
[398878208,1765954232517,-224.0782031,0.00015073,2]
[398878209,1765954232527,-485.31368784,0.00015073,2]
[398878210,1765954232538,-17.25777668,0.00015073,2]
[398878211,1765954232547,-500.0,0.00015073,2]
[398878212,1765954232556,-319.87635133,0.00015073,2]
[398878213,1765954232569,-180.12364867,0.00015073,2]
[398878214,1765954232579,-500.0,0.00015073,2]
[398878215,1765954232588,-207.40591636,0.00015073,2]
[398878216,1765954232599,-292.59408364,0.00015073,2]
[398878217,1765954232608,-186.98937207,0.00015073,2]
[398878218,1765954232620,-313.01062793,0.00015073,2]
[398878219,1765954232629,-121.56660869,0.00015073,2]
[398878220,1765954232641,-349.17285286,0.00015073,2]
[398878221,1765954232652,-31.49260687,0.00015073,2]
[398878222,1765954232661,-405.10750585,0.00015073,2]
[398878223,1765954232684,-94.89249415,0.00015073,2]
[398878224,1765954232693,-500.0,0.00015073,2]
[398878225,1765954232702,-500.0,0.00015073,2]
[398878226,1765954232712,-564.0782395,0.00015073,2]
[398878227,1765954232721,-500.0,0.00015073,2]
[398878228,1765954232731,-500.0,0.00015073,2]
[398878229,1765954232740,-500.0,0.00015073,2]
[398878230,1765954232749,-516.08920416,0.00015073,2]
[398878231,1765954232758,-500.0,0.00015073,2]
[398878232,1765954232767,-500.0,0.00015073,2]
[398878233,1765954232776,-500.0,0.00015073,2]
[398878234,1765954232785,-500.0,0.00015073,2]
[398878235,1765954232794,-576.83817064,0.00015073,2]
[398878236,1765954232803,-500.0,0.00015073,2]
[398878237,1765954232812,-500.0,0.00015073,2]
[398878238,1765954232821,-536.84,0.00015073,2]
[398878239,1765954232830,-999.0,0.00015102,3]
[398878240,1765954232839,-1000.0,0.00015123,2]
[398878241,1765954232847,-1746.66,0.00015169,2]
[398878242,1765954232856,-382.0,0.0001528,2]
[398878243,1765954232865,-166.66,0.00015333,2]
[398878244,1765954232874,-536.84,0.00015347,2]
[398878245,1765954232883,-1000.0,0.00015368,2]
[398878246,1765954232893,-23235.1073,0.00015421,2]
[398878247,1765954232902,-40689.66225809,0.00015421,2]
[398878248,1765954232914,-9634.52286503,0.00015421,2]
[398878249,1765954232925,-34190.74157688,0.00015421,2]
[398878250,1765954232935,-623.78473681,0.0001551,2]
[398878251,1765954232945,-500.0,0.0001551,2]
[398878252,1765954232954,-286.34400684,0.0001551,2]
[398878253,1765954232963,-200.0,0.00015511,2]
[398878254,1765954232972,-500.0,0.00015511,2]
[398878255,1765954232981,-500.0,0.00015511,2]
[398878256,1765954232990,-500.0,0.00015511,2]
[398878257,1765954232999,-500.0,0.00015511,2]
[398878258,1765954233008,-500.0,0.00015511,2]
[398878259,1765954233018,-500.0,0.00015511,2]
[398878260,1765954233027,-500.0,0.00015511,2]
[398878261,1765954233036,-200.0,0.00015511,2]
[398878262,1765954233045,-500.0,0.00015511,2]
[398878263,1765954233055,-500.0,0.00015511,2]
[398878264,1765954233063,-500.0,0.00015511,2]
[398878265,1765954233074,-500.0,0.00015511,2]
[398878266,1765954233083,-500.0,0.00015511,2]
[398878267,1765954233092,-500.0,0.00015511,2]
[398878268,1765954233101,-151.0,0.00015511,2]
[398878269,1765954233110,-151.0,0.00015511,2]
[398878270,1765954233119,-151.0,0.00015511,2]
[398878271,1765954233127,-151.0,0.00015511,2]
[398878272,1765954233136,-151.0,0.00015511,2]
[398878273,1765954233145,-151.0,0.00015511,2]
[398878274,1765954233155,-151.0,0.00015511,2]
[398878275,1765954233165,-151.0,0.00015511,2]
[398878276,1765954233174,-151.0,0.00015511,2]
[398878277,1765954233183,-151.0,0.00015511,2]
[398878278,1765954233191,-151.0,0.00015511,2]
[398878279,1765954233203,-200.0,0.00015511,2]
[398878280,1765954233215,-897.5754,0.00015521,2]
[398878281,1765954233224,-351.0,0.00015534,2]
[398878282,1765954233238,-230.33,0.00015599,2]
[398878283,1765954233247,-1000.0,0.00015621,2]
[398878284,1765954233257,-178.93750453,0.00015621,2]
[398878285,1765954233267,-504.94445868,0.00015621,2]
[398878286,1765954233276,-1000.0,0.00015621,2]
[398878287,1765954233285,-1000.0,0.00015621,2]
[398878288,1765954233294,-505.61497466,0.00015621,2]
[398878289,1765954233303,-1000.0,0.00015621,2]
[398878290,1765954233313,-354.71634612,0.00015621,2]
[398878291,1765954233322,-1014.08730683,0.00015621,2]
[398878292,1765954233331,-1002.14782291,0.00015621,2]
[398878293,1765954233341,-1000.0,0.00015621,2]
[398878294,1765954233351,-1000.0,0.00015621,2]
[398878295,1765954233360,-672.70358091,0.00015621,2]
[398878296,1765954233372,-327.29641909,0.00015621,2]
[398878297,1765954233382,-126.66132039,0.00015621,2]
[398878309,1765954238182,-666.0,0.00015621,2]
[398878310,1765954238202,-207.33867961,0.00015621,2]
[398878311,1765954238216,-262.36459396,0.00015621,2]
[398878312,1765954238231,-862.04807031,0.00015621,2]
[398878313,1765954238243,-534.74086948,0.00015621,2]
[398878314,1765954238272,-465.25913052,0.00015621,2]
[398878315,1765954238284,-865.67512225,0.00015621,2]
[398878316,1765954238300,-134.32487775,0.00015621,2]
[398878318,1765954238313,-180.52533435,0.00015621,2]
[398878321,1765954238324,-504.21734869,0.00015621,2]
[398878323,1765954238337,-1000.0,0.00015621,2]
[398878325,1765954238349,-1000.0,0.00015621,2]
[398878328,1765954238360,-69.10441808,0.00015621,2]
[398878330,1765954238375,-930.89558192,0.00015621,2]
[398878333,1765954238388,-536.84,0.00015621,2]
[398878335,1765954238400,-166.66,0.00015643,2]
[398878337,1765954238412,-536.84,0.00015895,2]
[398878340,1765954238425,-336.20580245,0.000159,2]
[398878342,1765954238436,-336.20580245,0.000159,2]
[398878344,1765954238449,-166.66,0.00015953,2]
[398878346,1765954238461,-500.0,0.00015999,2]
[398878353,1765954239127,-511.58763028,0.00015999,2]
[398878354,1765954239175,-508.98134456,0.00015999,2]
[398878355,1765954239199,-500.0,0.00015999,2]
[398878356,1765954239222,-513.93139164,0.00015999,2]
[398878357,1765954239238,-500.0,0.00015999,2]
[398878358,1765954239247,-500.0,0.00015999,2]
[398878359,1765954239257,-500.0,0.00015999,2]
[398878360,1765954239266,-500.0,0.00015999,2]
[398878361,1765954239275,-500.0,0.00015999,2]
[398878362,1765954239284,-500.0,0.00015999,2]
[398878363,1765954239293,-446.38616377,0.00015999,2]
[398878364,1765954239302,-200.0,0.00016059,2]
[398878365,1765954239311,-500.0,0.00016059,2]
[398878366,1765954239320,-3964.31,0.00016116,2]
[398878367,1765954239330,-1336.01,0.00016116,2]
[398878368,1765954239340,-536.88,0.00016168,2]
[398878369,1765954239350,-1561.91686674,0.00016168,2]
[398878370,1765954239359,-1500.0,0.00016168,2]
[398878371,1765954239368,-426.00952294,0.00016168,2]
[398878372,1765954239408,-77.95775703,0.00016168,2]
[398878373,1765954239418,-1500.0,0.00016168,2]
[398878374,1765954239427,-591.63120653,0.00016168,2]
[398878375,1765954239440,-908.36879347,0.00016168,2]
[398878376,1765954239451,-1500.0,0.00016168,2]
[398878377,1765954239462,-831.98416536,0.00016168,2]
[398878378,1765954239476,-668.01583464,0.00016168,2]
[398878379,1765954239485,-1500.0,0.00016168,2]
[398878380,1765954239494,-1500.0,0.00016168,2]
[398878381,1765954239503,-1500.0,0.00016168,2]
[398878382,1765954239513,-1500.0,0.00016168,2]
[398878383,1765954239522,-1426.13958269,0.00016168,2]
[398878384,1765954239531,-1500.0,0.00016168,2]
[398878385,1765954239540,-509.0,0.00016202,2]
[398878386,1765954239548,-166.66,0.00016263,2]
[398878387,1765954239558,-1680.0,0.00016413,2]
[398878388,1765954239568,-1631.22293568,0.00016424,2]
[398878389,1765954239577,-801.11438016,0.00016438,2]
[398878390,1765954239586,-150.0,0.00016438,2]
[398878391,1765954239595,-1363.37908181,0.00016438,2]
[398878392,1765954239605,-3199.48917838,0.00016438,2]
[398878393,1765954239616,-7396.46225131,0.00016438,2]
[398878394,1765954239627,-2318.2794885,0.00016438,2]
[398878395,1765954239635,-481.46730423,0.0001645,2]
[398878396,1765954239644,-150.0,0.00016473,2]
[398878397,1765954239654,-1505.68095092,0.00016477,2]
[398878398,1765954239664,-125.54198469,0.00016477,2]
[398878399,1765954239673,-1533.47680513,0.00016477,2]
[398878400,1765954239683,-300.0,0.00016499,2]
[398878401,1765954239692,-300.0,0.00016499,2]
[398878402,1765954239701,-300.0,0.00016499,2]
[398878403,1765954239711,-300.0,0.00016499,2]
[398878404,1765954239721,-159.44,0.00016499,2]
[398878405,1765954239731,-628.89,0.00016499,2]
[398878406,1765954239742,-628.89,0.00016499,2]
[398878407,1765954239752,-5256.93387655,0.000165,2]
[398878408,1765954239763,-8305.53978059,0.000165,2]
[398878409,1765954239774,-24418.91535953,0.000165,2]
[398878410,1765954239784,-469.26736995,0.000165,2]
[398878412,1765954239795,-564.0886184,0.000165,2]
[398878416,1765954239806,-543.57890316,0.000165,2]
[398878418,1765954239816,-274674.08213982,0.000165,2]
[398878419,1765954239825,-1533.47680509,0.00016524,2]
[398878420,1765954239834,-1631.22293561,0.0001653,2]
[398878421,1765954239843,-1533.47680509,0.00016571,2]
[398878422,1765954239852,-600.0,0.00016579,2]
[398878423,1765954239861,-1631.22293561,0.00016583,2]
[398878424,1765954239870,-1533.47680509,0.00016618,2]
[398878425,1765954239879,-1631.22293561,0.00016636,2]
[398878426,1765954239888,-1533.47680509,0.00016665,2]
[398878427,1765954239898,-1631.22293561,0.00016688,2]
[398878428,1765954239907,-1533.47680509,0.00016712,2]
[398878429,1765954239916,-1058.68447903,0.00016716,2]
[398878430,1765954239926,-227.72970341,0.00016716,2]
[398878431,1765954239936,-1507.82916702,0.00016716,2]
[398878432,1765954239947,-2000.0,0.00016716,2]
[398878433,1765954239957,-2000.0,0.00016716,2]
[398878434,1765954239967,-509.9852894,0.00016716,2]
[398878435,1765954239978,-2000.0,0.00016716,2]
[398878436,1765954239988,-396.7689122,0.00016716,2]
[398878437,1765954239998,-1624.66337537,0.00016716,2]
[398878438,1765954240007,-946.91932389,0.00016716,2]
[398878439,1765954240019,-194.52187501,0.00016736,2]
[398878440,1765954240029,-1631.22293561,0.00016741,2]
[398878441,1765954240038,-1533.47680509,0.00016759,2]
[398878442,1765954240047,-3596.28922654,0.00016764,2]
[398878443,1765954240056,-1631.22293561,0.00016794,2]
[398878444,1765954240066,-1533.47680509,0.00016806,2]
[398878445,1765954240076,-296.0,0.00016838,2]
[398878446,1765954240087,-1631.22293561,0.00016847,2]
[398878447,1765954240096,-1533.47680509,0.00016853,2]
[398878448,1765954240106,-150.16077941,0.00016855,2]
[398878449,1765954240117,-155.20047335,0.00016855,2]
[398878450,1765954240128,-150.1607794,0.00016878,2]
[398878451,1765954240137,-1133.63763008,0.000169,2]
[398878452,1765954240148,-1109.69329846,0.000169,2]
[398878453,1765954240157,-1533.47680509,0.000169,2]
[398878454,1765954240166,-150.1607794,0.000169,2]
[398878455,1765954240176,-1486.01720294,0.000169,2]
[398878456,1765954240186,-1631.22293561,0.000169,2]
[398878457,1765954240195,-1524.15092479,0.000169,2]
[398878458,1765954240205,-150.0,0.00016915,2]
[398878459,1765954240216,-500.0,0.00016949,2]
[398878460,1765954240226,-500.0,0.00016949,2]
[398878461,1765954240237,-500.0,0.00016949,2]
[398878462,1765954240246,-500.0,0.00016949,2]
[398878463,1765954240257,-500.0,0.00016949,2]
[398878464,1765954240267,-500.0,0.00016949,2]
[398878465,1765954240278,-500.0,0.00016949,2]
[398878466,1765954240290,-352.71314952,0.00016949,2]
[398878467,1765954240299,-500.0,0.00016949,2]
[398878468,1765954240310,-500.0,0.00016949,2]
[398878469,1765954240320,-500.0,0.00016949,2]
[398878470,1765954240331,-500.0,0.00016949,2]
[398878471,1765954240342,-514.23721699,0.00016949,2]
[398878472,1765954240352,-500.0,0.00016949,2]
[398878473,1765954240362,-436.26074643,0.00016949,2]
[398878474,1765954240372,-628.89,0.00016954,2]
[398878475,1765954240383,-628.89,0.00016954,2]
[398878476,1765954240393,-94110.8690357,0.00016955,2]
[398878477,1765954240409,-423.81024343,0.00016955,2]
[398878478,1765954240420,-260.25,0.00016955,2]
[398878480,1765954240568,-797.70921539,0.00016955,2]
[398878481,1765954240579,-162023.55429878,0.00016955,2]
[398878482,1765954240588,-5235.3660335,0.00016955,2]
[398878483,1765954240597,-7203.3476323,0.00016955,2]
[398878484,1765954240606,-61815.2439251,0.00016955,2]
[398878485,1765954240615,-36867.01918213,0.00016955,2]
[398878486,1765954240627,-23089.67374067,0.00016955,2]
[398878487,1765954240637,-1809.3057574,0.00016955,2]
[398878488,1765954240646,-26534.9222249,0.00016955,2]
[398878489,1765954240655,-500.0,0.00016983,2]
[398878490,1765954240665,-165.04276264,0.00016983,2]
[398878491,1765954240674,-500.0,0.00016986,2]
[398878492,1765954240683,-500.0,0.00016986,2]
[398878493,1765954240692,-500.0,0.00016986,2]
[398878494,1765954240702,-608.45,0.00016986,2]
[398878495,1765954240711,-150.28381276,0.00016986,2]
[398878496,1765954240720,-500.0,0.00016999,2]
[398878497,1765954240730,-500.0,0.00016999,2]
[398878498,1765954240739,-500.0,0.00016999,2]
[398878499,1765954240748,-500.0,0.00016999,2]
[398878500,1765954240757,-500.0,0.00016999,2]
[398878501,1765954240767,-500.0,0.00016999,2]
[398878502,1765954240776,-500.0,0.00016999,2]
[398878503,1765954240786,-500.0,0.00016999,2]
[398878504,1765954240796,-500.0,0.00016999,2]
[398878505,1765954240805,-194.4,0.00016999,2]
[398878506,1765954240815,-300.0,0.00016999,2]
[398878507,1765954240825,-676.91547728,0.00016999,2]
[398878508,1765954240835,-300.0,0.00016999,2]
[398878509,1765954240844,-161.48,0.00016999,2]
[398878510,1765954240854,-300.0,0.00016999,2]
[398878511,1765954240863,-628.89,0.00016999,2]
[398878512,1765954240872,-628.89,0.00016999,2]
[398878513,1765954240881,-628.89,0.00016999,2]
[398878514,1765954240890,-628.89,0.00016999,2]
[398878515,1765954240899,-628.89,0.00016999,2]
[398878516,1765954240908,-628.89,0.00016999,2]
[398878517,1765954240917,-628.89,0.00016999,2]
[398878518,1765954240926,-628.89,0.00016999,2]
[398878519,1765954240935,-628.89,0.00016999,2]
[398878520,1765954240944,-628.89,0.00016999,2]
[398878521,1765954240953,-628.89,0.00016999,2]
[398878522,1765954240962,-628.89,0.00016999,2]
[398878523,1765954240972,-628.89,0.00016999,2]
[398878524,1765954240981,-628.89,0.00016999,2]
[398878525,1765954240990,-628.89,0.00016999,2]
[398878526,1765954241000,-628.89,0.00016999,2]
[398878527,1765954241009,-628.89,0.00016999,2]
[398878528,1765954241020,-628.89,0.00016999,2]
[398878529,1765954241029,-628.89,0.00016999,2]
[398878530,1765954241039,-629.0480296,0.00016999,2]
[398878531,1765954241050,-300.0,0.00016999,2]
[398878532,1765954241059,-92352.55120689,0.00017,2]
[398878533,1765954241070,-21041.45799257,0.00017,2]
[398878534,1765954241082,-4348.12435315,0.00017,2]
[398878535,1765954241093,-5350.87,0.00017,2]
[398878536,1765954241104,-281.60684967,0.00017,2]
[398878537,1765954241116,-653.76080498,0.00017,2]
[398878538,1765954241129,-5500.83193205,0.00017,2]
[398878539,1765954241144,-2945.51050595,0.00017,2]
[398878540,1765954241155,-534.0,0.00017,2]
[398878541,1765954241166,-305.55524937,0.00017,2]
[398878542,1765954241176,-570.39513047,0.00017,2]
[398878543,1765954241191,-2734201.89366186,0.00017,2]
[398878544,1765954241201,-889.26257382,0.00017,2]
[398878545,1765954241214,-2280.9972858,0.00017,2]
[398878546,1765954241225,-1956.161805,0.00017,2]
[398878548,1765954243038,-500.0,0.00016167,2]
[398878549,1765954243049,-171.30136697,0.00016167,2]
[398878550,1765954243059,-239.98946548,0.00017,2]
[398878552,1765954246163,-610.14610001,0.00017,2]
[398878580,1765954835232,-300.0,0.00014272,2]
[398878581,1765954835261,-200.0,0.00014272,2]
[398878582,1765954835329,-157.61608406,0.00014272,2]
[398878583,1765954835463,-646.82040323,0.00014272,2]
[398878604,1765955432199,-300.0,0.00014272,2]
[398878605,1765955432208,-487.15443352,0.00014272,2]
[398878606,1765955432221,-712.84556648,0.00014272,2]
[398878607,1765955432232,-268.0,0.00014272,2]
[398878608,1765955432240,-501.60658461,0.00014273,2]
[398878609,1765955432250,-500.0,0.00014273,2]
[398878610,1765955432259,-307.08770607,0.00014273,2]
[398878611,1765955432268,-500.77768934,0.00014273,2]
[398878612,1765955432703,-550.67447441,0.00014273,2]